Cogmind - Beta 16.1 @@@ ROGUE MODE // 2026.04.14 @ 19:59:42 Player: Jimothy Jimone Result: Destroyed by S-10 Pest with Light Assault Rifle Performance ------------- Evolutions (0) 0 Regions Visited (4) 800 Robots Destroyed (3) 15 Value Destroyed (27) 27 Prototype IDs (23) 460 Alien Tech Used (0) 0 Bonus (-26) -26 TOTAL SCORE: 1276 Bonus ------- Follower Combat Kills 7 Friendly Fire -33 Cogmind --------- Core Integrity 0/250 Matter 280/300 Energy 100/100 System Corruption 0% Temperature Cool (0) Movement Core (50) Location -9/Mines Parts ------- > --- POWER (1) -------- (None) > --- PROPULSION (2) --- (None) > --- UTILITY (2) ------ Improved Terrain Scanner Improved Terrain Scan Processor > --- WEAPON (2) ------- Light Assault Rifle Light Assault Rifle > --- INVENTORY (5) ---- Light Ion Engine Light Deuterium Engine Aluminum Leg Guided Plasma Cannon Peak State ------------ > --- POWER ------------ Light Ion Engine > --- PROPULSION ------- Flight Unit Flight Unit > --- UTILITY ---------- Improved Terrain Scanner Improved Terrain Scan Processor > --- WEAPON ----------- Light Assault Rifle Grenade Launcher > --- INVENTORY -------- Light Ion Engine Light Deuterium Engine Guided Plasma Cannon Light Assault Rifle [Rating: 12] Favorites ----------- Power Light Ion Engine Engine Light Ion Engine Propulsion Flight Unit Leg Aluminum Leg Wheel Wheel Flight Unit Flight Unit Utility Improved Terrain Scan Processor Device Improved Terrain Scanner Storage Small Storage Unit Processor Improved Terrain Scan Processor Weapon Light Assault Rifle Ballistic Gun Light Assault Rifle Launcher Grenade Launcher Build | -11 -10 -10 -10 -9 ------- Run | Yrd Mat Min Exi Min Slots Evolved . | . . . . . Power . | . . . . . Propulsion . | . . . . . Utility . | . . . . . Weapon . | . . . . . Parts Attached 17 | 6 3 2 . 6 Power 2 | 1 1 . . . Engine 2 | 1 1 . . . Core . | . . . . . Reactor . | . . . . . Propulsion 7 | 2 2 . . 3 Treads . | . . . . . Leg 3 | . . . . 3 Wheel 2 | 2 . . . . Hover . | . . . . . Flight 2 | . 2 . . . Utility 4 | 2 . 2 . . Device 2 | 1 . 1 . . Storage 1 | 1 . . . . Processor 1 | . . 1 . . Hackware . | . . . . . Protection . | . . . . . Artifact . | . . . . . Weapon 4 | 1 . . . 3 Energy Gun . | . . . . . Energy Cannon . | . . . . . Ballistic Gun 3 | 1 . . . 2 Ballistic Cannon . | . . . . . Launcher 1 | . . . . 1 Special Weapon . | . . . . . Impact Weapon . | . . . . . Slashing Weapon . | . . . . . Piercing Weapon . | . . . . . Special Melee Weapon . | . . . . . Unidentified Prototypes . | . . . . . Parts Lost 7 | . 1 . . 6 Power 1 | . . . . 1 Propulsion 3 | . . . . 3 Utility 1 | . 1 . . . Weapon 2 | . . . . 2 Highest Loss Streak 3 | . 1 . . 3 To Critical Strikes . | . . . . . Average Backups 3 | 1 2 5 5 4 Power 2 | . 1 3 3 2 Propulsion . | . 1 . . . Utility . | . . . . . Weapon . | . . 1 1 1 Tool/Special . | . . . . . Unused Backups 5 | . . 1 . 4 Power 3 | . . . . 3 Propulsion 1 | . . 1 . . Utility . | . . . . . Weapon 1 | . . . . 1 Tool/Special . | . . . . . Average Slot Usage (%) 77 | . 74 66 85 71 Engine 9 | . 14 14 14 3 Leg 4 | . . . . 11 Wheel 2 | . 17 . . . Flight 17 | . 10 28 28 7 Device 12 | . 5 4 14 14 Storage 2 | . 12 . . . Processor 11 | . . 4 14 14 Ballistic Gun 14 | . 14 14 14 14 Launcher 2 | . . . . 5 Peak Build Rating 12 | 6 6 10 11 12 Average Rating 8 | 4 5 6 10 9 On Entrance 6 | . 6 4 10 11 Avg Prop Armor Cover (%) 7 | . 9 . . 5 Naked Turns . | . . . . . Heaviest Build 12 | 12 12 5 5 8 Greatest Support 20 | 20 20 8 8 20 Greatest Overweight (x) 3 | 3 2 . . . Average Overweight (x) . | . . . . . Largest Inventory Capacity 8 | 8 8 5 5 5 Average Capacity 5 | 7 7 5 5 5 Most Carried 6 | 2 6 5 5 5 Average Carried 4 | 1 2 4 4 4 Final Capacity 8 | 8 5 5 5 5 Final Carried 5 | 2 5 5 5 4 Class Distribution -------------------- 100% | Mutant Dominant Class ---------------- Mutant | -10/Materials Mutant | -10/Mines Mutant | -10/Exiles Mutant | -9/Mines Resources | -11 -10 -10 -10 -9 ----------- Run | Yrd Mat Min Exi Min Matter Collected 441 | 266 50 . . 125 Remotely . | . . . . . Salvage Created 39 | 11 19 . . 9 Parts 4 | 2 1 . . 1 Haulers Intercepted . | . . . . . Recyclers Shooed . | . . . . . Parts Field Recycled . | . . . . . Retrieved Matter . | . . . . . Parts Self-Destructed . | . . . . . Prevented . | . . . . . Parts Restored . | . . . . . Kills | -11 -10 -10 -10 -9 ------- Run | Yrd Mat Min Exi Min Combat Hostiles Destroyed 2 | . 1 . . 1 Guns 2 | . 1 . . 1 Classes Destroyed 2 | 1 1 . . . Tunneler 1 | 1 . . . . Swarmer 2 | . 1 . . 1 Best Kill Streak 1 | 1 1 . . 1 Combat Bots Only 1 | . 1 . . 1 Max Kills in Single Turn 1 | 1 1 . . 1 Gunslinging . | . . . . . Exploded . | . . . . . Melee . | . . . . . Uniques/NPCs Destroyed 1 | . . . . 1 YI-UF0 (-9/Mines) Combat | -11 -10 -10 -10 -9 -------- Run | Yrd Mat Min Exi Min Hostile Shots Fired 65 | . 24 . . 41 Missed 18 | . 8 . . 10 Hits 47 | . 16 . . 31 Melee 1 | . . . . 1 Projectile 46 | . 16 . . 30 AOE 12 | . . . . 12 Damage Taken 641 | . 138 . . 503 Core 253 | . 44 . . 209 Absorbed by Shields . | . . . . . Core Remaining (%) 100 | 100 . . . . Volleys Fired 36 | 6 11 . . 19 Largest 2 | 1 1 . . 2 Hottest 50 | 20 20 . . 50 Shots Fired 50 | 6 11 . . 33 Gun 43 | 6 11 . . 26 Cannon . | . . . . . Launcher 7 | . . . . 7 Special . | . . . . . Kinetic 43 | 6 11 . . 26 Thermal . | . . . . . Explosive 7 | . . . . 7 Electromagnetic . | . . . . . Robot Hit Streak 6 | 6 2 . . 6 Robot Miss Streak 5 | . 3 . . 5 Penetration Max . | . . . . . Secondary Targets . | . . . . . Shots Hit Robots 25 | 6 5 . . 14 Core Hits 12 | 2 1 . . 9 Critical Kills . | . . . . . Critical Parts Destroyed . | . . . . . Critical Strikes . | . . . . . Melee Attacks . | . . . . . Impact . | . . . . . Slashing . | . . . . . Piercing . | . . . . . Sneak Attacks . | . . . . . Combat Hostiles . | . . . . . Follow-up Attacks . | . . . . . Damage Inflicted 211 | 45 39 . . 127 Guns 150 | 45 39 . . 66 Cannons . | . . . . . Explosions 47 | . . . . 47 Melee . | . . . . . Ramming 14 | . . . . 14 Kinetic 150 | 45 39 . . 66 Thermal . | . . . . . Explosive 47 | . . . . 47 Electromagnetic . | . . . . . Impact . | . . . . . Slashing . | . . . . . Piercing . | . . . . . Highest Corruption . | . . . . . Average Corruption . | . . . . . Corruption Purged . | . . . . . Corruption Blocked . | . . . . . Overload Shots . | . . . . . Overflow Damage . | . . . . . Projectiles . | . . . . . Explosions . | . . . . . Melee . | . . . . . Knockbacks . | . . . . . Impact . | . . . . . Kinetic . | . . . . . Secondary . | . . . . . Self-Inflicted Damage 3 | . . . . 3 Shots . | . . . . . Rammed 1 | . . . . 1 Targets Rammed 2 | . . . . 2 Kicked 1 | . . . . 1 Crushed . | . . . . . Highest Temperature 8 | . . . . 8 Average Temperature 3 | . . . . 3 Received Heat Transfer . | . . . . . Siege Activations . | . . . . . Martial Activations . | . . . . . Shielding Activations . | . . . . . Robots Disrupted . | . . . . . Combat Hostiles . | . . . . . Robots Corrupted . | . . . . . Combat Hostiles . | . . . . . Parts Fried . | . . . . . Impact Corruptions . | . . . . . Robots Melted . | . . . . . Combat Hostiles . | . . . . . Parts Melted . | . . . . . Heat Transferred . | . . . . . Parts Sabotaged . | . . . . . Parts Stolen . | . . . . . Parts Stripped . | . . . . . Power Chain Reactions . | . . . . . Alert | -11 -10 -10 -10 -9 ------- Run | Yrd Mat Min Exi Min Maximum Alert Level . | . . . . . Low Security (%) 100 | 100 100 100 . 100 Level 1 . | . . . . . Level 2 . | . . . . . Level 3 . | . . . . . Level 4 . | . . . . . Level 5 . | . . . . . High Security . | . . . . . Max Security . | . . . . . Peak Influence 59 | 5 30 . . 59 Initial . | . . . . . Average 8 | . 7 . . 13 Influence Increases 119 | 5 30 . . 84 Destroy 0b10 Robot/C 60 | . 20 . . 40 Destroy 0b10 Robot/NC 5 | 5 . . . . Destroy Leader 10 | . 10 . . . Allied During Kill 4 | . . . . 4 Destroy Structure 25 | . . . . 25 Lose Combat Pursuer 15 | . . . . 15 Influence Decreases 119 | 5 30 . . 84 Time Decay 92 | 5 30 . . 57 Lost Part 22 | . . . . 22 Lost Ally 5 | . . . . 5 Squads Dispatched 1 | . 1 . . . Investigation 1 | . 1 . . . Extermination . | . . . . . Reinforcement . | . . . . . Assault . | . . . . . Garrison . | . . . . . Intercept . | . . . . . Searches Triggered . | . . . . . Construction Impeded . | . . . . . Haulers Reinforced . | . . . . . Active Scanning Responses . | . . . . . Cargo Convoy Interrupts . | . . . . . Stealth | -11 -10 -10 -10 -9 --------- Run | Yrd Mat Min Exi Min Distress Signals 1 | . . . . 1 Communications Jammed . | . . . . . Distress Signals . | . . . . . Times Spotted 25 | . 5 . . 20 Peak Tracking Total 10 | . 3 . . 10 Tactical Retreats 1 | . . . . 1 Traps | -11 -10 -10 -10 -9 ------- Run | Yrd Mat Min Exi Min Traps Triggered . | . . . . . Indirectly . | . . . . . Trap Hack Attempts . | . . . . . Triggered . | . . . . . Disarmed . | . . . . . Reprogrammed . | . . . . . Reused . | . . . . . Traps Extracted . | . . . . . Installed . | . . . . . Triggered . | . . . . . Machines | -11 -10 -10 -10 -9 ---------- Run | Yrd Mat Min Exi Min Machines Disabled . | . . . . . Max in Single Turn . | . . . . . Machines Repaired . | . . . . . Machines Dismantled . | . . . . . Machines Sabotaged . | . . . . . Overloaded Fab Kills . | . . . . . Hacking | -11 -10 -10 -10 -9 --------- Run | Yrd Mat Min Exi Min Machines Accessed 7 | . 3 1 3 . Terminals 2 | . 2 . . . Fabricators . | . . . . . Repair Stations . | . . . . . Recycling Units 1 | . 1 . . . Scanalyzers . | . . . . . Garrison Access . | . . . . . Total Hacks 13 | . 6 1 6 . Successful 9 | . 2 1 6 . Failed 4 | . 4 . . . Catastrophic . | . . . . . Database Lockouts . | . . . . . Manual 2 | . 1 . 1 . Terminals 5 | . 5 . . . Fabricators . | . . . . . Repair Stations . | . . . . . Recycling Units 1 | . 1 . . . Scanalyzers . | . . . . . Garrison Access . | . . . . . Terminal Hacks 8 | . 1 1 6 . Record 5 | . . . 5 . Open Door 1 | . . 1 . . Alert Level 1 | . 1 . . . Proto ID Catalog 1 | . . . 1 . Fabricator Hacks . | . . . . . Repair Station Hacks . | . . . . . Recycling Unit Hacks 1 | . 1 . . . Report Inventory 1 | . 1 . . . Scanalyzer . | . . . . . Garrison Access Hacks . | . . . . . Unauthorized Hacks . | . . . . . Terminals . | . . . . . Fabricators . | . . . . . Repair Stations . | . . . . . Recycling Units . | . . . . . Scanalyzers . | . . . . . Garrison Access . | . . . . . Data Cores Recovered . | . . . . . Used . | . . . . . Hacking Detections 2 | . 2 . . . Full Trace Events 1 | . 1 . . . Feedback Events . | . . . . . Feedback Blocked . | . . . . . Robot Schematics Acquired . | . . . . . Robots Built . | . . . . . Authchips . | . . . . . Time . | . . . . . Total Robot Build Rating . | . . . . . Part Schematics Acquired . | . . . . . Parts Built . | . . . . . Authchips . | . . . . . Time . | . . . . . Total Part Build Rating . | . . . . . Part Studies Acquired . | . . . . . Parts Repaired . | . . . . . Time . | . . . . . Parts Recycled . | . . . . . Recycled Matter . | . . . . . Retrieved Matter . | . . . . . Retrieved Components . | . . . . . Parts Scanalyzed . | . . . . . Part Schematics Acquired . | . . . . . Parts Damaged . | . . . . . Bothacking | -11 -10 -10 -10 -9 ------------ Run | Yrd Mat Min Exi Min Used RIF Installer . | . . . . . Robots Hacked . | . . . . . Non-combat . | . . . . . Combat . | . . . . . Robot Hacks Applied . | . . . . . Relay Couplers Released . | . . . . . Fabnet Peak Effective % . | . . . . . Robots Rewired . | . . . . . Allies Hacked . | . . . . . Hacks Repelled . | . . . . . Allies | -11 -10 -10 -10 -9 -------- Run | Yrd Mat Min Exi Min Total Allies 3 | . . . . 3 Largest Group 3 | . . . . 3 Highest-Rated Group 40 | . . . . 40 Highest-Rated Ally 16 | . . . . 16 Total Orders . | . . . . . Ally Attacks 29 | . . . . 29 Total Damage 160 | . . . . 160 Kills 2 | . . . . 2 Allies Corrupted . | . . . . . Allies Melted . | . . . . . Intel | -11 -10 -10 -10 -9 ------- Run | Yrd Mat Min Exi Min Active Infowar (turns) 609 | 29 33 12 279 256 Terrain 547 | . . 12 279 256 Seismic 62 | 29 33 . . . Robot Analysis Total . | . . . . . Derelict Logs Recovered . | . . . . . Drone Launches . | . . . . . Drone Recoveries . | . . . . . Exploration | -11 -10 -10 -10 -9 ------------- Run | Yrd Mat Min Exi Min Turns Passed 781 | 111 107 28 279 256 Spaces Moved 1284 | 111 110 62 749 252 Core 19 | 5 . . . 14 Treads . | . . . . . Legs 125 | . . . . 125 Wheels 151 | 106 45 . . . Hover . | . . . . . Flight 989 | . 65 62 749 113 Fastest Speed 37 | 50 37 37 37 37 Average Speed 51 | 80 69 37 37 78 Slowest Speed 205 | 200 205 37 37 120 Overloaded Moves . | . . . . . Propulsion Burnouts . | . . . . . Robots Hopped 2 | . . . 2 . Potential Cave-ins . | . . . . . Cave-ins Triggered . | . . . . . Exploration Rate (%) 34 | 4 17 7 91 51 Regions Visited 4 Branch Regions 3 Pre-discovered Areas 1 | . . . 1 . Known Exits Taken . | . . . . . Unknown Exits Taken 4 | 1 1 1 1 . Scrap Searched 1 | . . . . 1 Spaces Dug . | . . . . . Terrain Destroyed 36 | . . . . 36 Melee . | . . . . . Projectile . | . . . . . AOE 36 | . . . . 36 Terrain Rammed . | . . . . . Walls Destroyed . | . . . . . Machines Disabled . | . . . . . Actions | -11 -10 -10 -10 -9 --------- Run | Yrd Mat Min Exi Min Total 1349 | 124 132 65 748 280 Wait 1 | . 1 . . . Move 1276 | 110 109 61 744 252 Hop 2 | . . . 2 . Pick Up 7 | 2 3 1 1 . Fast Attach 11 | 6 . 2 . 3 Attach 3 | . 2 . . 1 Detach 2 | . 2 . . . Swap 4 | . 2 . . 2 Drop 5 | . 2 1 1 1 Fire 36 | 6 11 . . 19 Melee . | . . . . . Ram 1 | . . . . 1 Kick 1 | . . . . 1 Crush . | . . . . . Escape Stasis . | . . . . . Rewire . | . . . . . Trap . | . . . . . Miscellaneous . | . . . . . Route ------- -11/Scrapyard -10/Materials (discovered 2 exits: [*Mat] / *Min) -10/Mines -10/Exiles (discovered 2 exits: [*Min x2]) -9/Mines History --------- Turn | Location | Event 16 | -11/Scrapyard | Discovered new exit (range 15) 112 | -11/Scrapyard | Entered Materials 112 | -10/Materials | Discovered new exit (range 14) 204 | -10/Materials | Discovered new exit (range 6) 219 | -10/Materials | Entered Mines 223 | -10/Mines | Met a Derelict who couldn't figure out how to use a Trap Extractor 245 | -10/Mines | Deemed a non-threat by the Exiles lab entrance 245 | -10/Mines | Discovered new exit (range 5) 247 | -10/Mines | Entered Exiles 247 | -10/Exiles | Found Exiles lab destroyed 287 | -10/Exiles | Learned location of Zion (-7) 304 | -10/Exiles | Discovered new exit (range 14) 313 | -10/Exiles | Build established: Mutant 350 | -10/Exiles | Discovered new exit (range 15) 483 | -10/Exiles | Opened EX-Vault 488 | -10/Exiles | Found Gui. Plasma Cannon 526 | -10/Exiles | Entered Mines 535 | -9/Mines | Assisted by bots powering up and referring to "LRC-V3" 553 | -9/Mines | YI-UF0 nonchalantly dropped a Grenade Launcher on the ground 577 | -9/Mines | Core integrity fell below 50% 581 | -9/Mines | Allies destroyed YI-UF0 611 | -9/Mines | Lost 3 parts (1p1n1w) 712 | -9/Mines | Assembled infested the area 717 | -9/Mines | Assisted by a Guerilla fighting off Assembled 769 | -9/Mines | Core integrity fell below 20% 782 | -9/Mines | Destroyed by S-10 Pest with Light Assault Rifle Last Messages --------------- as-86112 destroyed. as-61947 destroyed. HV Slug penetrates Wall. HV Slug penetrates as-47808. as-47808 destroyed. HV Slug penetrates Wall. as-50770 destroyed. Acquired 5 matter. as-07564 destroyed. as-11912 destroyed. Aluminum Leg destroyed. The unstable cave ceiling collapses. HV Slug penetrates D-53 Grenadier. D-53 Grenadier suffers critical hit (Destroy). D-53 Grenadier knocked back. Slammed into R-06 Scavenger. D-53 Grenadier suffers critical hit (Destroy). D-53 Grenadier destroyed. R-06 Scavenger sends out distress signal. as-66112 destroyed. Map ----- +----------------------------------------------------+ | | | | | | | | | | | | | | | | | | | | | | | | | | | ???????????#?#####?????????#?#####??#???#?#??#? | | ???????????#???#######?#??#####?###????????#??# | | ????????? ???? ? ?##???#??##?##??#???#???####?? | | ??????????" ""????###?#?#??####?###??#???##???? | | ??????????"?""" ? ??#?#??#?##### ##????#?#?#?# | | ???#????""??"?" ########## #######?#?#? | | ???#??#? ??? ? #?#?#???#??? | | ????#?? """ """? #??#??##??#? | | ???#??? """ """ ??#?#### #?##?#?#####? | | ??????# ""??"?? ?#??###s ####?#?######? | | ??????#? ?? ????##?## ###?####### ### | | ???#??##??#?#?#?##??## ## ####?# # # | | ??????##?####??######g@ ### ###### | | ?#????#####?##?# g ###### #?### | | ??#??#?##????### ##### ####??# #### | | ???#????#?#???##%#?#?########## ## | | ?????????##?#??# ##????###?# ##$ # | | ???#?#?##?##???# ###?#?#?### ##### ### ## | | ????#????#####?# ##?## ??? ?##### ##### ###? | | ??#?#???###??#?# #??#????####?#### #???#####?## | | ?###?? ? ?####?# #?#?# ####???#?## ###?#?????## | | ?##?#?? ?? ?## # ? ? ?######?## ##?#?#?###?# | | ???#??????? # ?? #?##?##???# ##?#????##?? | | ???????#?? ? ? #?#?###?## ##??#?#?##?? | | ?#?###??# ???#??###?# ##????#?#?## | | ?????? # # ! $ ???##??##?? ???###???### | | ???????# % ?######?#?# ????#?????# | | ???????## %??# ?#?????# ?????????## | | ???????# ### ??#???????? ?#???#???## | | ???????### ### #?? #???#?????? ????##?### | | ?????#? ?? ###??? #?????????? ??? | | ????????##??###???##?? #???????????????????# | | ?????????##??#??#??? ?? ???????????????#???# | | ??????????????#????? ??????????????????????# | | ????????????????#?????????????????????????## | | ????????????????????????????????????????#??# | | ??????????????????????????????????????????### | +----------------------------------------------------+ Best States ------------- Heat Dissipation 25 Energy Generation 10 Energy Capacity 250 Matter Stores 300 Matter Capacity 300 Sight Range 16 Terrain Scan Range 16 Terrain Scan Density 110 Evasion (%) 62 Item Schematics ----------------- None Robot Schematics ------------------ None Fabricated ------------ Nothing Repaired ---------- Nothing Studied --------- None Alien Tech Used ----------------- None Achievements -------------- Luggage Code Challenges ------------ None Game ------ Seed DisposablePulsarSlayer Manual? 0 Play Time 00:17:01 Cumulative 21.0 hours Start 2026.04.14 @ 19:41:44 End 2026.04.14 @ 19:59:42 Sessions 1 Manual Loads 0 Difficulty Rogue Special Mode None Game No. 42 Rogue 42 Adventurer 0 Explorer 0 Win Type - Total 0 Types 0/0/0/0/0/0/0/0/0/0 Lore% 23 Gallery% 17 Achievement% 17 Wizard Run 0 Options --------- Layout 1 ASCII 0 Keyboard 1 Movement Arrows Keybinds 0 Fullscreen 0 Font 14/SmallcapsGlow Map View 55x38 Zoom Use 0% Tactical HUD 0 Map Filters NONE Filters NONE Steam 1 RUN: 74849f02-c589-4892-8569-a6c806e81f65